lending/lending_fUSD_20250920
["ID","MTS","AMOUNT","RATE_DAILY","PERIOD"]
[386517336,1758334232544,-480.88667165,0.0001916,2]
[386517337,1758334232554,-1625.02304885,0.00019161,2]
[386517338,1758334232564,-2117.66543065,0.00019174,2]
[386517339,1758334232574,-2117.66543065,0.00019174,2]
[386517340,1758334232584,-2117.66543065,0.00019176,2]
[386517342,1758334232593,-480.88667165,0.00019178,2]
[386517344,1758334232603,-500.0,0.00019178,2]
[386517345,1758334232613,-500.0,0.00019178,2]
[386517347,1758334232624,-480.88667165,0.00019178,2]
[386517348,1758334232633,-2117.66543065,0.00019196,2]
[386517349,1758334232643,-480.88667165,0.00019198,2]
[386517350,1758334232653,-480.88667165,0.000192,2]
[386517351,1758334232662,-410.0,0.000192,2]
[386517352,1758334232672,-480.88667165,0.000192,2]
[386517353,1758334232682,-480.88667165,0.00019208,2]
[386517354,1758334232692,-1625.02304885,0.00019232,2]
[386517355,1758334232701,-502.03,0.00019234,2]
[386517356,1758334232711,-2117.66543065,0.00019239,2]
[386517357,1758334232721,-2117.66543065,0.00019246,2]
[386517358,1758334232731,-1625.02304885,0.00019263,2]
[386517359,1758334232740,-1625.02304885,0.00019272,2]
[386517360,1758334232750,-2117.66543065,0.0001928,2]
[386517361,1758334232759,-1625.02304885,0.00019284,2]
[386517362,1758334232769,-207.94507867,0.00019288,2]
[386517363,1758334232779,-410.0,0.00019424,2]
[386517364,1758334232788,-410.0,0.0001943,2]
[386517365,1758334232797,-744.18587661,0.000196,2]
[386517366,1758334232807,-410.0,0.00019631,2]
[386517367,1758334232816,-744.18587656,0.00019633,2]
[386517368,1758334232826,-553.42824768,0.00019657,2]
[386517369,1758334232836,-744.18587656,0.00019667,2]
[386517370,1758334232845,-1582.0,0.00019674,2]
[386517371,1758334232855,-569.0,0.00019674,2]
[386517372,1758334232865,-813.0,0.00019674,2]
[386517373,1758334232874,-4229.0,0.00019674,2]
[386517374,1758334232884,-1200.283,0.00019674,2]
[386517375,1758334232893,-921.518,0.00019674,2]
[386517376,1758334232903,-6024.936,0.00019674,2]
[386517377,1758334232912,-4174.0,0.00019674,2]
[386517378,1758334232922,-2000.0,0.000197,2]
[386517379,1758334232932,-350.1,0.000197,2]
[386517380,1758334232942,-1087.08,0.000197,2]
[386517381,1758334232951,-944.64,0.000197,2]
[386517382,1758334232960,-822.67,0.000197,2]
[386517383,1758334232971,-543.54,0.000197,2]
[386517384,1758334232981,-150.0,0.000197,2]
[386517385,1758334232991,-411.44,0.000197,2]
[386517386,1758334233002,-2386.0,0.000197,2]
[386517387,1758334233011,-504.77,0.000197,2]
[386517388,1758334233021,-744.18587656,0.000197,2]
[386517389,1758334233030,-744.18587656,0.00019733,2]
[386517390,1758334233040,-300.0,0.00019744,2]
[386517391,1758334233051,-816.05060085,0.00019745,2]
[386517392,1758334233061,-150.0,0.00019759,2]
[386517393,1758334233071,-150.105,0.00019759,2]
[386517394,1758334233081,-150.065,0.00019759,2]
[386517395,1758334233091,-1261.0,0.00019759,2]
[386517396,1758334233100,-3393.0,0.00019759,2]
[386517397,1758334233110,-921.0,0.00019759,2]
[386517398,1758334233120,-2041.0,0.00019759,2]
[386517399,1758334233129,-1304.0,0.00019759,2]
[386517400,1758334233139,-602.0,0.00019759,2]
[386517401,1758334233149,-744.18587656,0.00019767,2]
[386517402,1758334233159,-1000.0,0.000198,3]
[386517403,1758334233168,-668.61490833,0.000198,2]
[386517404,1758334233182,-1577.2,0.000198,2]
[386517405,1758334233191,-349.9,0.000198,2]
[386517406,1758334233201,-2003.48,0.000198,2]
[386517407,1758334233211,-744.18587656,0.000198,2]
[386517408,1758334233222,-5111.73406,0.000198,2]
[386517409,1758334233232,-5111.73406,0.000198,2]
[386517410,1758334233241,-1575.52797771,0.0001981,2]
[386517411,1758334233251,-744.18587656,0.00019833,2]
[386517412,1758334233262,-500.0,0.00019836,2]
[386517413,1758334233341,-930.801,0.0001984,2]
[386517414,1758334233352,-200.0,0.0001984,2]
[386517415,1758334233361,-277.26010489,0.00019846,2]
[386517416,1758334233371,-167.28,0.0001985,2]
[386517417,1758334233380,-5111.73406,0.0001986,2]
[386517418,1758334233389,-744.18587656,0.00019867,2]
[386517419,1758334233399,-1000.0,0.00019878,2]
[386517420,1758334233408,-1000.0,0.000199,2]
[386517421,1758334233417,-2178.04247064,0.000199,3]
[386517422,1758334233427,-461.7025,0.000199,2]
[386517423,1758334233435,-1739.07,0.000199,2]
[386517424,1758334233445,-2000.0,0.000199,2]
[386517425,1758334233454,-2000.0,0.000199,2]
[386517426,1758334233464,-2000.0,0.000199,2]
[386517427,1758334233473,-2000.0,0.000199,2]
[386517428,1758334233482,-3392.22198199,0.000199,2]
[386517429,1758334233492,-773.61,0.000199,2]
[386517430,1758334233502,-10000.0,0.000199,2]
[386517431,1758334233511,-207.76337596,0.000199,2]
[386517432,1758334233520,-5000.0,0.000199,2]
[386517433,1758334233530,-744.18587656,0.000199,2]
[386517434,1758334233540,-556.18417869,0.000199,2]
[386517435,1758334233550,-246.29377319,0.000199,2]
[386517436,1758334233559,-15735.9444528,0.000199,2]
[386517437,1758334233568,-2500.0,0.000199,3]
[386517438,1758334233577,-253.59657261,0.000199,2]
[386517439,1758334233587,-208.51009309,0.000199,2]
[386517440,1758334233596,-6365.55147319,0.000199,2]
[386517441,1758334233606,-150.0,0.00019902,2]
[386517442,1758334233615,-190.1,0.0001991,2]
[386517443,1758334233625,-1082.84,0.0001991,2]
[386517444,1758334233635,-5111.73406,0.0001992,2]
[386517445,1758334233645,-1000.0,0.00019933,2]
[386517446,1758334233654,-150.0,0.00019938,2]
[386517447,1758334233663,-500.0,0.00019938,2]
[386517448,1758334233673,-150.0,0.00019938,2]
[386517449,1758334233682,-150.0,0.00019938,2]
[386517450,1758334233691,-150.0,0.00019938,2]
[386517451,1758334233701,-150.0,0.00019938,2]
[386517452,1758334233710,-500.0,0.00019938,2]
[386517453,1758334233720,-150.0,0.00019938,2]
[386517454,1758334233729,-500.0,0.00019938,2]
[386517455,1758334233738,-518.0,0.00019938,2]
[386517456,1758334233747,-150.0,0.00019938,2]
[386517457,1758334233758,-2095.0,0.00019938,2]
[386517458,1758334233767,-204.29014543,0.00019938,2]
[386517459,1758334233777,-500.0,0.00019938,2]
[386517460,1758334233786,-726.0,0.00019938,2]
[386517461,1758334233796,-150.0,0.00019938,2]
[386517462,1758334233806,-484.0,0.00019938,2]
[386517463,1758334233816,-500.0,0.00019938,2]
[386517464,1758334233825,-150.0,0.00019938,2]
[386517465,1758334233835,-265.3603111,0.00019938,2]
[386517466,1758334233844,-539.0,0.00019938,2]
[386517467,1758334233853,-150.0,0.00019938,2]
[386517468,1758334233863,-150.0,0.00019938,2]
[386517469,1758334233872,-150.0,0.00019938,2]
[386517470,1758334233881,-1221.0,0.00019938,2]
[386517471,1758334233891,-524.0,0.00019938,2]
[386517472,1758334233900,-202.15223993,0.00019938,2]
[386517473,1758334233909,-150.0,0.00019938,2]
[386517474,1758334233918,-150.0,0.00019938,2]
[386517475,1758334233928,-151.81323912,0.00019963,2]
[386517476,1758334233937,-410.0,0.00019965,2]
[386517477,1758334233946,-500.0,0.00019973,2]
[386517478,1758334233955,-500.0,0.00019973,2]
[386517479,1758334233964,-500.0,0.00019973,2]
[386517480,1758334233974,-500.0,0.00019973,2]
[386517481,1758334233983,-503.90601684,0.00019973,2]
[386517482,1758334233993,-500.0,0.00019973,2]
[386517483,1758334234002,-500.0,0.00019973,2]
[386517484,1758334234012,-500.0,0.00019973,2]
[386517485,1758334234022,-151.6,0.0001999,2]
[386517486,1758334234032,-151.6,0.0001999,2]
[386517487,1758334234042,-151.6,0.0001999,2]
[386517488,1758334234055,-151.6,0.0001999,2]
[386517489,1758334234064,-151.6,0.0001999,2]
[386517490,1758334234074,-151.6,0.0001999,2]
[386517491,1758334234083,-151.6,0.0001999,2]
[386517492,1758334234093,-151.6,0.0001999,2]
[386517493,1758334234102,-151.6,0.0001999,2]
[386517494,1758334234111,-151.6,0.0001999,2]
[386517495,1758334234121,-151.6,0.0001999,2]
[386517496,1758334234132,-151.6,0.0001999,2]
[386517497,1758334234141,-151.6,0.0001999,2]
[386517498,1758334234151,-151.6,0.0001999,2]
[386517499,1758334234161,-151.6,0.0001999,2]
[386517500,1758334234170,-151.6,0.0001999,2]
[386517501,1758334234184,-151.6,0.0001999,2]
[386517502,1758334234194,-151.6,0.0001999,2]
[386517503,1758334234203,-151.6,0.0001999,2]
[386517504,1758334234213,-151.6,0.0001999,2]
[386517505,1758334234223,-151.6,0.0001999,2]
[386517506,1758334234233,-151.6,0.0001999,2]
[386517507,1758334234243,-151.6,0.0001999,2]
[386517508,1758334234256,-151.6,0.0001999,2]
[386517509,1758334234266,-151.6,0.0001999,2]
[386517510,1758334234276,-151.6,0.0001999,2]
[386517511,1758334234286,-151.6,0.0001999,2]
[386517512,1758334234296,-151.6,0.0001999,2]
[386517513,1758334234305,-151.6,0.0001999,2]
[386517514,1758334234315,-4810.0,0.00019992,2]
[386517515,1758334234325,-4810.0,0.00019996,2]
[386517516,1758334234334,-151.0,0.00019997,2]
[386517517,1758334234344,-307.85612409,0.00019999,2]
[386517518,1758334234353,-300.0,0.00019999,2]
[386517519,1758334234363,-1197.38227844,0.00019999,5]
[386517520,1758334234372,-1408.0,0.0002,2]
[386517521,1758334234381,-29234.29827759,0.0002,2]
[386517522,1758334234391,-66260.06662361,0.0002,2]
[386517523,1758334234400,-26383.00117485,0.0002,2]
[386517524,1758334234415,-90245.68041259,0.0002,2]
[386517525,1758334234426,-185347.62573458,0.0002,2]
[386517526,1758334234437,-125187.29143458,0.0002,2]
[386517527,1758334234457,-23357.728,0.0002,2]
[386517528,1758334234469,-522.04790989,0.0002,2]
[386517529,1758334234487,-68461.07566766,0.0002,2]
[386517530,1758334234511,-21781.80633243,0.0002,2]
[386517564,1758334240990,-313.82494903,0.00019674,2]
[386517565,1758334241028,-413.17505097,0.00019674,2]
[386517566,1758334241038,-3742147.07189619,0.0002,2]
[386517570,1758334243349,-119425.70618731,0.0002,2]
[386517577,1758334246395,-347.55640854,0.0002,2]
[386517637,1758334340392,500.0,0.00016986,2]
[386517638,1758334359159,500.0,0.00016986,2]
[386517639,1758334389225,168.86,9.518e-05,2]
[386517640,1758334389438,168.86,0.00014277,2]
[386517642,1758334471379,150.0,0.00018962,7]
[386517644,1758334658560,799.0,0.00029,120]
[386517646,1758335106476,150.0,0.00018,2]
[386517647,1758335107031,162.56555114,0.00018,2]
[386517648,1758335134958,276.1712362,0.0003013,120]
[386517649,1758335164663,12198.17205095,8e-05,2]
[386517650,1758335169112,9290.05606315,0.00011,2]
[386517654,1758335192208,2017.02426482,0.00015,2]
[386517655,1758335194430,226.56915205,0.0003,120]
[386517656,1758335233004,1419.71329606,0.00015,2]
[386517660,1758335277430,91529.58909426,0.00018,2]
[386517664,1758335363055,-250.01125298,0.00018605,2]
[386517665,1758335367714,-67.20874702,0.00018605,2]
[386517669,1758335432333,-170.2026806,0.00018544,2]
[386517670,1758335432343,-666.0,0.00018612,3]
[386517671,1758335432353,-250.0,0.00018628,2]
[386517672,1758335432363,-574.35895145,0.00018628,3]
[386517673,1758335432373,-168.72733199,0.00018643,2]
[386517674,1758335432382,-1141.24094528,0.00018644,2]
[386517675,1758335432393,-1560.14905472,0.00018644,2]
[386517676,1758335432402,-970.48,0.00018697,2]
[386517677,1758335432413,-150.0,0.00018709,2]
[386517678,1758335432422,-301.21,0.0001874,2]
[386517679,1758335432433,-227.5123246,0.00018746,2]
[386517680,1758335432443,-1200.0,0.00018848,2]
[386517681,1758335432452,-1970.2,0.00018849,2]
[386517682,1758335432461,-167.93,0.00018881,2]
[386517683,1758335432471,-250.0,0.00018951,2]
[386517684,1758335432481,-168.86,0.00019036,2]
[386517685,1758335432492,-1947.6668994,0.00019088,2]
[386517686,1758335432521,-460.9131006,0.00019088,2]
[386517687,1758335432530,-200.0,0.00019106,2]
[386517688,1758335432539,-213.32528632,0.00019132,2]
[386517689,1758335432549,-160.0,0.00019132,2]
[386517690,1758335432559,-300.0,0.0001915,2]
[386517691,1758335432568,-1174.9,0.00019151,2]
[386517692,1758335432578,-271.42825223,0.00019163,2]
[386517693,1758335432592,-500.0,0.00019178,2]
[386517694,1758335432602,-347.99096115,0.00019178,2]
[386517695,1758335432612,-301.04,0.00019178,2]
[386517696,1758335432622,-163.61,0.00019178,2]
[386517697,1758335432631,-543.25,0.00019178,2]
[386517698,1758335432641,-150.0,0.00019178,2]
[386517699,1758335432651,-453.58267484,0.00019178,2]
[386517700,1758335432676,-627.62514,0.00019178,2]
[386517701,1758335432737,-1300.81218516,0.00019178,2]
[386517702,1758335432747,-922.64924548,0.00019178,2]
[386517703,1758335432759,-270.94075452,0.00019178,2]
[386517704,1758335432770,-150.0,0.00019178,2]
[386517706,1758335432780,-150.0,0.00019178,2]
[386517708,1758335432790,-777.7170409,0.00019178,2]
[386517717,1758335432867,-418.2168618,0.00019178,2]
[386517718,1758335435894,168.56935,0.0001843,2]
[386517719,1758335436015,168.56935,0.00018402,2]
[386517720,1758335436351,168.56935,0.00018184,2]
[386517721,1758335436480,168.56935,0.00018152,2]
[386517722,1758335436790,168.56935,0.00018151,2]
[386517723,1758335437212,168.56935,0.00017996,2]
[386517724,1758335437517,168.56935,0.00017974,2]
[386517725,1758335437796,168.56935,0.00017937,2]
[386517728,1758335438145,168.56935,0.00017936,2]
[386517743,1758335438378,-168.56935,0.00018649,2]
[386517745,1758335438387,-168.56935,0.00018677,2]
[386517747,1758335438397,-168.56935,0.00018714,2]
[386517749,1758335438406,-168.56935,0.00018896,2]
[386517751,1758335438416,-168.56935,0.00018923,2]
[386517753,1758335438426,-159.25862722,0.00019177,2]
[386517755,1758335438435,-1189.1660973,0.00019178,2]
[386517758,1758335438446,-117.22852548,0.00019195,2]
[386517760,1758335438458,-154.19972675,0.00019195,2]
[386517762,1758335438467,-203.15239967,0.00019231,2]
[386517763,1758335438530,168.56935,0.00017909,2]
[386517790,1758335439101,168.56935,0.00017906,2]
[386517821,1758335439387,168.56935,0.00017905,2]
[386517855,1758335439694,168.56935,0.00017904,2]
[386517888,1758335440002,168.56935,0.00017903,2]
[386517936,1758335440393,-264.871483,0.00018923,2]
[386517938,1758335440403,-68.27585256,0.00019231,2]
[386517940,1758335440413,-271.42825223,0.00019248,2]
[386517942,1758335440422,-271.42825223,0.00019253,2]
[386517944,1758335440432,-271.42825223,0.00019278,2]
[386517946,1758335440442,-150.0,0.00019278,2]
[386517948,1758335440451,-150.0,0.00019278,2]
[386517950,1758335440462,-302.1,0.00019278,2]
[386517952,1758335440471,-271.42825223,0.00019283,2]
[386517954,1758335440481,-2000.0,0.000195,2]
[386517956,1758335440490,-1644.01,0.00019506,2]
[386517958,1758335440500,-500.0,0.00019616,2]
[386517961,1758335440511,-301.21,0.00019677,2]
[386517963,1758335440521,-170.2026806,0.00019797,2]
[386517965,1758335440530,-4399.00843,0.000198,2]
[386517967,1758335440540,-152.0,0.00019812,3]
[386517969,1758335440550,-1304.0,0.00019818,2]
[386517971,1758335440560,-602.0,0.00019818,2]
[386517973,1758335440570,-1582.0,0.00019818,2]
[386517975,1758335440579,-569.0,0.00019818,2]
[386517977,1758335440588,-813.0,0.00019818,2]
[386517979,1758335440597,-4229.0,0.00019818,2]
[386517981,1758335440607,-1178.0,0.00019818,2]
[386517983,1758335440616,-898.0,0.00019818,2]
[386517985,1758335440626,-4174.0,0.00019818,2]
[386517987,1758335440636,-2041.0,0.00019818,2]
[386517989,1758335440645,-921.0,0.00019818,2]
[386517991,1758335440655,-3393.0,0.00019818,2]
[386517993,1758335440664,-360.6415,0.00019838,2]
[386517995,1758335440674,-200.0,0.0001984,2]
[386517997,1758335440683,-744.641,0.0001985,2]
[386517999,1758335440693,-174.3,0.00019897,2]
[386518001,1758335440702,-1419.48,0.000199,2]
[386518003,1758335440712,-500.0,0.000199,2]
[386518005,1758335440722,-500.0,0.000199,2]
[386518007,1758335440733,-5000.0,0.000199,2]
[386518010,1758335440743,-1226.99,0.000199,2]
[386518012,1758335440752,-4243.70098212,0.000199,2]
[386518013,1758335440762,-871.84035543,0.000199,2]
[386518015,1758335440772,-871.84035543,0.000199,2]
[386518017,1758335440781,-150.0,0.00019938,2]
[386518019,1758335440791,-500.0,0.00019938,2]
[386518021,1758335440801,-150.0,0.00019938,2]
[386518024,1758335440811,-464.0,0.00019938,2]
[386518025,1758335440822,-510.0,0.00019938,2]
[386518028,1758335440832,-150.0,0.00019938,2]
[386518030,1758335440842,-178.10400192,0.00019938,2]
[386518032,1758335440851,-1170.0,0.00019938,2]
[386518034,1758335440861,-502.0,0.00019938,2]
[386518036,1758335440870,-150.0,0.00019954,2]
[386518038,1758335440879,-167.18,0.00019954,2]
[386518040,1758335440889,-410.81,0.00019954,2]
[386518042,1758335440898,-502.06797421,0.00019973,2]
[386518044,1758335440908,-500.0,0.00019973,2]
[386518046,1758335440918,-500.0,0.00019973,2]
[386518048,1758335440927,-503.88361874,0.00019973,2]
[386518050,1758335440936,-505.58975347,0.00019973,2]
[386518052,1758335440946,-506.51296997,0.00019973,2]
[386518054,1758335440955,-500.0,0.00019973,2]
[386518056,1758335440965,-150.0,0.00019973,2]
[386518058,1758335440976,-500.0,0.00019973,2]
[386518060,1758335440985,-500.0,0.00019973,2]
[386518062,1758335440995,-291.57107923,0.00019973,2]
[386518064,1758335441004,-150.0,0.00019973,2]
[386518066,1758335441013,-150.0,0.00019973,2]
[386518068,1758335441023,-2193.0,0.00019973,2]
[386518070,1758335441033,-150.0,0.00019973,2]
[386518072,1758335441042,-696.0,0.00019973,2]
[386518074,1758335441051,-500.0,0.00019973,2]
[386518076,1758335441060,-204.53690996,0.00019973,2]
[386518078,1758335441069,-154.26163726,0.0001998,2]
[386518080,1758335441079,-151.6,0.0001999,2]
[386518082,1758335441089,-151.6,0.0001999,2]
[386518084,1758335441098,-151.6,0.0001999,2]
[386518086,1758335441107,-151.6,0.0001999,2]
[386518088,1758335441116,-151.6,0.0001999,2]
[386518090,1758335441125,-151.6,0.0001999,2]
[386518092,1758335441135,-151.6,0.0001999,2]
[386518094,1758335441144,-151.6,0.0001999,2]
[386518096,1758335441154,-151.6,0.0001999,2]
[386518098,1758335441163,-151.6,0.0001999,2]
[386518100,1758335441173,-151.6,0.0001999,2]
[386518102,1758335441182,-151.6,0.0001999,2]
[386518104,1758335441192,-151.6,0.0001999,2]
[386518106,1758335441201,-151.6,0.0001999,2]
[386518108,1758335441210,-151.0,0.00019997,2]
[386518110,1758335441219,-300.0,0.00019999,2]
[386518112,1758335441229,-300.0,0.00019999,2]
[386518114,1758335441238,-300.0,0.00019999,2]
[386518116,1758335441248,-1186.57533887,0.00019999,5]
[386518118,1758335441257,-500.0,0.00019999,2]
[386518120,1758335441267,-150.0,0.00019999,2]
[386518122,1758335441276,-150.0,0.00019999,2]
[386518124,1758335441286,-500.0,0.00019999,2]
[386518126,1758335441295,-252.04243568,0.00019999,2]
[386518128,1758335441305,-150.4602456,0.00019999,2]
[386518130,1758335441314,-150.0,0.00019999,2]
[386518132,1758335441326,-150.0,0.00019999,2]
[386518135,1758335441335,-151.05511869,0.00019999,2]
[386518136,1758335441346,-5009.79528339,0.00019999,2]
[386518137,1758335441355,-1325.0,0.0002,2]
[386518138,1758335441364,-14617.14913879,0.0002,2]
[386518139,1758335441374,-33130.03331181,0.0002,2]
[386518140,1758335441383,-1235049.05404899,0.0002,2]
[386518141,1758335441392,-1000.0,0.0002,3]
[386518142,1758335441401,-1000.0,0.0002,3]
[386518143,1758335441410,-500.0,0.0002,2]
[386518144,1758335441419,-1300508.92548905,0.0002,2]
[386518145,1758335441428,-1142747.696367,0.0002,2]
[386518147,1758335441441,-347.28,0.0002,2]
[386518155,1758335441503,-264.871483,0.00018896,2]
[386518157,1758335441513,-534.30427146,0.0002,2]
[386518163,1758335441561,168.56935,0.00017807,2]
[386518202,1758335441929,168.56935,0.00017692,2]
[386518219,1758335442078,168.56935,0.00017692,2]
[386518224,1758335442117,264.871483,0.0001843,2]
[386518231,1758335442174,264.871483,0.00018402,2]
[386518241,1758335442263,168.56935,0.0001769,2]
[386518263,1758335442466,264.871483,0.00018184,2]
[386518273,1758335442547,168.56935,0.0001769,2]
[386518317,1758335442945,264.871483,0.00018152,2]
[386518351,1758335443258,181.96340066,0.00018151,2]
[386518354,1758335443282,82.90808234,0.00018151,2]
[386518388,1758335443566,-264.871483,0.00018649,2]
[386518390,1758335443576,-264.871483,0.00018677,2]
[386518392,1758335443586,-264.871483,0.00018714,2]
[386518394,1758335443596,-281.10469,0.00018923,2]
[386518397,1758335443606,-95339.74631355,0.0002,2]
[386518399,1758335443617,-135917.6047421,0.0002,2]
[386518404,1758335443653,264.871483,0.00017996,2]
[386518424,1758335443911,-5027.180133,0.0002,2]
[386518439,1758335444052,264.871483,0.00017974,2]
[386518472,1758335444347,264.871483,0.00017937,2]
[386518566,1758335445359,264.871483,0.00017936,2]
[386518567,1758335445758,264.871483,0.00017909,2]
[386518569,1758335446294,-281.10469,0.00018714,2]
[386518570,1758335446317,-19.74865833,0.00018896,2]
[386518571,1758335446345,264.871483,0.00017906,2]
[386518572,1758335446389,-261.35603167,0.00018896,2]
[386518573,1758335446399,-550.15467056,0.000199,2]
[386518574,1758335446408,-169.06438174,0.000199,2]
[386518575,1758335446418,-20.63166415,0.0002,2]
[386518576,1758335446446,264.871483,0.00017905,2]
[386518577,1758335446470,-1143.97892178,0.0002,2]
[386518578,1758335446574,-2116.8119578,0.0002,2]
[386518579,1758335446586,-4705.79999987,0.0002,2]
[386518580,1758335446683,264.871483,0.00017904,2]
[386518581,1758335446713,-1347.87961427,0.0002,2]
[386518582,1758335446724,-4246.56722555,0.0002,2]
[386518587,1758335446944,264.871483,0.00017903,2]
[386518588,1758335447235,264.871483,0.00017807,2]
[386518589,1758335447559,153.88568145,0.00017692,2]
[386518590,1758335447582,110.98580155,0.00017692,2]
[386518591,1758335447869,281.10469,0.0001843,2]
[386518592,1758335448165,281.10469,0.00018402,2]
[386518593,1758335448461,281.10469,0.00018184,2]
[386518594,1758335448547,264.871483,0.00017692,2]
[386518595,1758335448866,281.10469,0.00018152,2]
[386518596,1758335448936,264.871483,0.0001769,2]
[386518597,1758335449237,264.871483,0.0001769,2]
[386518598,1758335449274,281.10469,0.00018151,2]
[386518599,1758335449642,281.10469,0.00017996,2]
[386518600,1758335449938,281.10469,0.00017974,2]
[386518601,1758335450233,281.10469,0.00017937,2]
[386518602,1758335450537,281.10469,0.00017936,2]
[386518603,1758335450840,281.10469,0.00017909,2]
[386518604,1758335451173,50.3278208,0.00017906,2]
[386518605,1758335451194,230.7768692,0.00017906,2]
[386518606,1758335451607,281.10469,0.00017905,2]
[386518607,1758335451778,281.10469,0.00017904,2]
[386518608,1758335452035,281.10469,0.00017903,2]
[386518609,1758335452330,281.10469,0.00017807,2]
[386518610,1758335452631,281.10469,0.00017692,2]
[386518611,1758335452955,281.10469,0.00017692,2]
[386518612,1758335453298,281.10469,0.0001769,2]
[386518613,1758335453775,281.10469,0.0001769,2]
[386518614,1758335476708,-281.10469,0.00018649,2]
[386518615,1758335476731,-420.26169723,0.00018663,3]
[386518616,1758335476758,-114.80716108,0.00018677,2]
[386518617,1758335489279,500.0,0.00016986,2]
[386518618,1758335496971,155.82,9.548e-05,2]
[386518619,1758335497205,155.82,0.00010184,2]
[386518620,1758335497413,155.82,0.00010821,2]
[386518621,1758335497839,155.82,0.00011457,2]
[386518622,1758335498464,155.82,0.00012094,2]
[386518623,1758335498594,155.82,0.0001273,2]
[386518624,1758335498745,155.82,0.00013367,2]
[386518625,1758335498880,155.82,0.00014003,2]
[386518626,1758335498950,155.82,0.0001464,2]
[386518627,1758335499121,155.82,0.00015277,2]
[386518628,1758335499387,155.82,0.00015913,2]
[386518629,1758335499553,155.82,0.0001655,2]
[386518630,1758335499764,155.82,0.00017186,2]
[386518631,1758335500346,155.82,0.00017823,2]
[386518632,1758335500399,155.82,0.00018459,2]
[386518634,1758335683926,209.0,0.000183,2]
[386518635,1758335684633,209.0,0.0001793,2]
[386518636,1758335684712,209.0,0.0001756,2]
[386518637,1758335684959,209.0,0.0001719,2]
[386518638,1758335685282,167.55960779,0.0001682,2]
[386518639,1758335685306,41.44039221,0.0001682,2]
[386518640,1758335685712,209.0,0.0001645,2]
[386518641,1758335701543,1000.0,0.00018,2]
[386518644,1758335912367,1000.0,0.00018,2]
[386518645,1758335912515,1000.0,0.000182,2]
[386518646,1758335912669,1000.0,0.000184,2]
[386518647,1758335914207,-152.0,0.000186,2]
[386518650,1758336218011,-158.25,0.00018577,2]
[386518651,1758336245008,-212.21,0.0001856,2]
[386518652,1758336250445,-212.52728159,0.0001856,2]
[386518653,1758336253615,-287.47271841,0.0001856,2]
[386518654,1758336254757,-170.24944705,0.0001856,2]
[386518655,1758336259276,-161.15924226,0.0001856,2]
[386518656,1758336261714,-238.20616549,0.0001856,2]
[386518657,1758336265222,-163.06,0.0001856,2]
[386518658,1758336267699,-200.0,0.0001856,2]
[386518659,1758336290894,163.06,0.00018466,2]
[386518660,1758336314607,170.7565497,0.00018,2]
[386518662,1758336400554,170.2026806,0.00018475,2]
[386518663,1758336427755,-162.47699155,0.00018541,3]
[386518664,1758336431650,-150.0,0.00018523,2]
[386518665,1758336431672,-276.50380102,0.00018541,3]
[386518666,1758336434407,-271.52592093,0.00018541,3]